bitfinex/quotes_BTCUSD_20250730
["timestamp","ask_amount","ask_price","bid_price","bid_amount"]
[1753916276413,0.3402,117650.0,117640.0,0.43637708]
[1753916280451,0.37851033,117650.0,117640.0,0.17575]
[1753916280737,0.39680033,117650.0,117640.0,0.15945]
[1753916280982,0.42006033,117650.0,117640.0,0.15945]
[1753916282952,0.42006033,117650.0,117640.0,0.13076]
[1753916283158,0.42320033,117650.0,117640.0,0.13076]
[1753916283591,0.42006033,117650.0,117640.0,0.13076]
[1753916283807,0.42006033,117650.0,117640.0,0.15531]
[1753916285545,0.42006033,117650.0,117640.0,0.1573]
[1753916289296,0.36545,117650.0,117640.0,0.1603]
[1753916289504,0.3402,117650.0,117640.0,0.1769]
[1753916290627,0.3402,117650.0,117640.0,0.43752708]
[1753916291061,0.3402,117650.0,117640.0,0.1769]
[1753916291646,0.3402,117650.0,117640.0,0.43752708]
[1753916291849,0.3402,117650.0,117640.0,0.1769]
[1753916292083,0.37868533,117650.0,117640.0,0.1769]
[1753916298356,0.38067533,117650.0,117640.0,0.1769]
[1753916299640,0.40393533,117650.0,117640.0,0.1769]
[1753916303593,0.41893533,117650.0,117640.0,0.1573]
[1753916304449,0.41893533,117650.0,117640.0,0.13076]
[1753916309087,0.41893533,117650.0,117640.0,0.15558]
[1753916309302,0.41893533,117650.0,117640.0,0.41935708]
[1753916310589,0.41893533,117650.0,117640.0,0.15873]
[1753916313185,0.38045,117650.0,117640.0,0.15873]
[1753916320264,0.38045,117650.0,117640.0,0.41935708]
[1753916322096,0.34219,117650.0,117640.0,0.41935708]
[1753916322313,0.34219,117650.0,117640.0,0.43525708]
[1753916322738,0.3402,117650.0,117640.0,0.43525708]
[1753916322961,0.3402,117650.0,117640.0,0.79586146]
[1753916323403,0.3402,117650.0,117640.0,0.53523438]
[1753916323830,0.37470933,117650.0,117640.0,0.53523438]
[1753916325105,0.37470933,117650.0,117640.0,0.2746073]
[1753916325338,0.37470933,117650.0,117640.0,0.53523438]
[1753916325549,0.37470933,117650.0,117640.0,0.53012438]
[1753916325755,0.37470933,117650.0,117640.0,0.53523438]
[1753916325960,0.3402,117650.0,117640.0,0.51973438]
[1753916326624,0.3402,117650.0,117640.0,0.53583438]
[1753916327444,0.0002,117650.0,117640.0,0.96647166]
[1753916327660,0.0002,117650.0,117640.0,0.98347253]
[1753916327887,0.0002,117650.0,117640.0,1.00047267]
[1753916328762,0.0002,117650.0,117640.0,1.26109975]
[1753916328951,0.0002,117650.0,117640.0,1.00047267]
[1753916329310,0.0002,117650.0,117640.0,0.99947267]
[1753916329727,0.0002,117650.0,117640.0,1.00047267]
[1753916330147,0.0002,117650.0,117640.0,1.00347267]
[1753916335202,0.0002,117650.0,117640.0,1.26409975]
[1753916336064,0.0002,117650.0,117640.0,1.26209975]
[1753916336277,0.0002,117650.0,117640.0,1.25909975]
[1753916336490,0.0002,117650.0,117640.0,1.26209975]
[1753916336693,0.0002,117650.0,117640.0,1.26709975]
[1753916337098,0.0002,117650.0,117640.0,1.00647267]
[1753916337746,0.0002,117650.0,117640.0,1.26709975]
[1753916340900,0.0002,117650.0,117640.0,0.48521851]
[1753916341109,0.0002,117650.0,117640.0,1.26709975]
[1753916351896,0.0002,117650.0,117640.0,0.48521851]
[1753916352090,0.0002,117650.0,117640.0,1.26709975]
[1753916358409,0.0002,117650.0,117640.0,2.38898099]
[1753916358616,0.00489325,117660.0,117650.0,0.22749423]
[1753916358816,0.00501711,117660.0,117650.0,1.31935877]
[1753916359256,0.00501711,117660.0,117650.0,1.34490377]
[1753916360984,0.00501711,117660.0,117650.0,1.34890377]
[1753916361432,0.00501711,117660.0,117650.0,1.35590377]
[1753916364188,0.00501711,117660.0,117650.0,1.62010377]
[1753916365007,0.00501711,117660.0,117650.0,0.83822253]
[1753916365234,0.00501711,117660.0,117650.0,1.62010377]
[1753916371036,0.00501711,117660.0,117650.0,1.82434377]
[1753916384591,0.00501711,117660.0,117650.0,1.69566377]
[1753916384811,0.00501711,117660.0,117650.0,1.82430377]
[1753916391569,0.00501711,117660.0,117650.0,1.80800377]
[1753916397630,0.04830711,117660.0,117650.0,0.75945805]
[1753916397856,0.06717711,117660.0,117650.0,1.15722491]
[1753916398102,0.06717711,117660.0,117650.0,1.43485127]
[1753916398321,0.06717711,117660.0,117650.0,1.42635156]
[1753916398532,0.06717711,117660.0,117650.0,1.41785199]
[1753916398751,0.06717711,117660.0,117650.0,1.42635156]
[1753916398966,0.06717711,117660.0,117650.0,1.41785199]
[1753916399191,0.06717711,117660.0,117650.0,1.4348512]
[1753916399597,0.06717711,117660.0,117650.0,1.44335069]
[1753916399837,0.06717711,117660.0,117650.0,1.17915069]
[1753916400029,0.06717711,117660.0,117650.0,1.16215163]
[1753916400262,0.06717711,117660.0,117650.0,1.14515221]
[1753916400491,0.06717711,117660.0,117650.0,1.01651221]
[1753916400707,0.06717711,117660.0,117650.0,0.88452513]
[1753916400936,0.06717711,117660.0,117650.0,1.14515221]
[1753916404705,0.06717711,117660.0,117650.0,1.15365199]
[1753916405133,0.06717711,117660.0,117650.0,1.14515221]
[1753916406489,0.06717711,117660.0,117650.0,1.15365199]
[1753916406697,0.06717711,117660.0,117650.0,1.1621517]
[1753916406908,0.06420711,117660.0,117650.0,1.17065127]
[1753916407122,0.06420711,117660.0,117650.0,1.19616127]
[1753916407336,0.06420711,117660.0,117650.0,1.20466076]
[1753916407753,0.06420711,117660.0,117650.0,1.21316018]
[1753916407971,0.04830711,117660.0,117650.0,1.20466076]
[1753916408176,0.04830711,117660.0,117650.0,1.21315975]
[1753916408379,0.04830711,117660.0,117650.0,1.19923098]
[1753916408584,0.04830711,117660.0,117650.0,1.2077304]
[1753916408799,0.04830711,117660.0,117650.0,1.19923098]
[1753916409290,0.02346711,117660.0,117650.0,1.2077304]
[1753916409506,0.02131711,117660.0,117650.0,1.21622968]
[1753916409729,0.00501711,117660.0,117650.0,1.21622968]
[1753916410392,0.02081711,117660.0,117650.0,1.21622968]
[1753916410811,0.02081711,117660.0,117650.0,0.69497552]
[1753916411015,0.02081711,117660.0,117650.0,1.21622968]
[1753916411653,0.02081711,117660.0,117650.0,1.2077304]
[1753916411896,0.02081711,117660.0,117650.0,1.21622975]
[1753916412109,0.02296711,117660.0,117650.0,1.21622932]
[1753916412750,0.02296711,117660.0,117650.0,1.20773004]
[1753916413431,0.04780711,117660.0,117650.0,1.19073127]
[1753916413662,0.06290711,117660.0,117650.0,1.19073127]
[1753916413866,0.06290711,117660.0,117650.0,1.19923069]
[1753916414491,0.06290711,117660.0,117650.0,1.19073127]
[1753916414711,0.06290711,117660.0,117650.0,1.26737669]
[1753916414927,0.06290711,117660.0,117650.0,1.27587604]
[1753916415335,0.04780711,117660.0,117650.0,1.26737669]
[1753916415542,0.04780711,117660.0,117650.0,1.12173799]
[1753916415770,0.04780711,117660.0,117650.0,1.26741719]
[1753916415984,0.04780711,117660.0,117650.0,1.1302377]
[1753916416184,0.04780711,117660.0,117650.0,0.67801711]
[1753916416406,0.04780711,117660.0,117650.0,1.19927127]
[1753916416613,0.04780711,117660.0,117650.0,1.20777076]
[1753916417208,0.04780711,117660.0,117650.0,1.0620917]
[1753916417408,0.04780711,117660.0,117650.0,1.20777091]
[1753916417619,0.04780711,117660.0,117650.0,1.2162704]
[1753916418230,0.02296711,117660.0,117650.0,1.2162704]
[1753916418447,0.02296711,117660.0,117650.0,1.20777062]
[1753916418806,0.02296711,117660.0,117650.0,1.21627004]
[1753916419212,0.02296711,117660.0,117650.0,1.20777062]
[1753916419611,0.02296711,117660.0,117650.0,1.19927113]
[1753916419859,0.02296711,117660.0,117650.0,1.20777062]
[1753916420086,0.02296711,117660.0,117650.0,1.21627004]
[1753916420520,0.02296711,117660.0,117650.0,1.19927113]
[1753916420733,0.02296711,117660.0,117650.0,1.20777062]
[1753916421385,0.02296711,117660.0,117650.0,1.19927113]
[1753916421784,0.02296711,117660.0,117650.0,1.20777062]
[1753916422019,0.02296711,117660.0,117650.0,1.21627004]
[1753916422885,0.02081711,117660.0,117650.0,1.21626932]
[1753916423104,0.02081711,117660.0,117650.0,1.19077127]
[1753916423553,0.02081711,117660.0,117650.0,1.19927069]
[1753916423774,0.02081711,117660.0,117650.0,1.19077127]
[1753916423998,0.02081711,117660.0,117650.0,1.19927069]
[1753916424455,0.02081711,117660.0,117650.0,1.19077127]
[1753916425110,0.02081711,117660.0,117650.0,1.19927069]
[1753916425559,0.02081711,117660.0,117650.0,1.19077127]
[1753916425779,0.02081711,117660.0,117650.0,1.19927069]
[1753916426206,0.02081711,117660.0,117650.0,1.19077127]
[1753916427104,0.02081711,117660.0,117650.0,1.19927069]
[1753916427356,0.02081711,117660.0,117650.0,1.19077127]
[1753916427574,0.02081711,117660.0,117650.0,1.19927069]
[1753916427785,0.02081711,117660.0,117650.0,1.19077127]
[1753916428469,0.02081711,117660.0,117650.0,1.19927069]
[1753916428748,0.02081711,117660.0,117650.0,1.20777004]
[1753916429176,0.02081711,117660.0,117650.0,1.21626932]
[1753916429632,0.02081711,117660.0,117650.0,1.20777004]
[1753916429842,0.02081711,117660.0,117650.0,1.21626932]
[1753916430264,0.02081711,117660.0,117650.0,1.20777004]
[1753916430691,0.02081711,117660.0,117650.0,1.19927069]
[1753916431967,0.06686711,117660.0,117650.0,0.88452513]
[1753916432192,0.04717711,117660.0,117650.0,0.91428513]
[1753916432404,0.06377711,117660.0,117650.0,1.17190221]
[1753916432627,0.06377711,117660.0,117650.0,1.00190646]
[1753916432838,0.06377711,117660.0,117650.0,0.58588938]
[1753916433085,0.06686711,117660.0,117650.0,0.97515646]
[1753916433302,0.06377711,117660.0,117650.0,0.97515646]
[1753916433517,0.06377711,117660.0,117650.0,0.99977646]
[1753916433949,0.06377711,117660.0,117650.0,1.16977221]
[1753916434156,0.06377711,117660.0,117650.0,1.18040192]
[1753916434572,0.06377711,117660.0,117650.0,1.18890156]
[1753916434794,0.06377711,117660.0,117650.0,1.05176192]
[1753916435053,0.06377711,117660.0,117650.0,1.18040192]
[1753916435271,0.06377711,117660.0,117650.0,1.18040199]
[1753916435482,0.06377711,117660.0,117650.0,1.1889017]
[1753916435791,0.06377711,117660.0,117650.0,1.1919117]
[1753916436014,0.06377711,117660.0,117650.0,1.18341199]
[1753916436638,0.06377711,117660.0,117650.0,1.1919117]
[1753916437271,0.06377711,117660.0,117650.0,1.20041134]
[1753916437683,0.06377711,117660.0,117650.0,1.1919117]
[1753916437893,0.06377711,117660.0,117650.0,1.18341199]
[1753916438534,0.06377711,117660.0,117650.0,1.1919117]
[1753916438997,0.06377711,117660.0,117650.0,1.20041134]
[1753916439450,0.04717711,117660.0,117650.0,1.1919117]
[1753916439640,0.04717711,117660.0,117650.0,1.04627221]
[1753916439817,0.04717711,117660.0,117650.0,1.1919117]
[1753916440452,0.04717711,117660.0,117650.0,1.20041134]
[1753916440865,0.04717711,117660.0,117650.0,1.1919117]
[1753916441077,0.02285711,117660.0,117650.0,1.20041134]
[1753916441719,0.02285711,117660.0,117650.0,1.1919117]
[1753916442584,0.02285711,117660.0,117650.0,1.20891091]
[1753916442796,0.02285711,117660.0,117650.0,1.20041134]
[1753916443792,0.02285711,117660.0,117650.0,1.1919117]
[1753916444214,0.02285711,117660.0,117650.0,1.20891083]
[1753916444425,0.02285711,117660.0,117650.0,1.20891091]
[1753916444622,0.02285711,117660.0,117650.0,1.2174104]
[1753916444858,0.02285711,117660.0,117650.0,1.20891091]
[1753916446089,0.02081711,117660.0,117650.0,1.20891091]
[1753916446755,0.02081711,117660.0,117650.0,1.1919117]
[1753916447785,0.02081711,117660.0,117650.0,1.20041134]
[1753916448228,0.02081711,117660.0,117650.0,1.20891091]
[1753916449086,0.02081711,117660.0,117650.0,1.20041134]
[1753916449489,0.02081711,117660.0,117650.0,1.2174104]
[1753916449909,0.02081711,117660.0,117650.0,1.1919117]
[1753916450113,0.02081711,117660.0,117650.0,1.20041134]
[1753916450564,0.02081711,117660.0,117650.0,1.20891091]
[1753916451677,0.02081711,117660.0,117650.0,1.20041134]
[1753916451885,0.02081711,117660.0,117650.0,1.20891091]
[1753916452092,0.02081711,117660.0,117650.0,1.20041134]
[1753916452531,0.02081711,117660.0,117650.0,1.20891091]
[1753916452950,0.02081711,117660.0,117650.0,1.20041134]
[1753916453138,0.02081711,117660.0,117650.0,1.1919117]
[1753916453365,0.02081711,117660.0,117650.0,1.20041134]
[1753916453562,0.02081711,117660.0,117650.0,1.1919117]
[1753916453780,0.02081711,117660.0,117650.0,1.20041134]
[1753916454233,0.02081711,117660.0,117650.0,1.1919117]
[1753916454457,0.02081711,117660.0,117650.0,1.20041134]
[1753916455376,0.02081711,117660.0,117650.0,1.20891083]
[1753916455754,0.02081711,117660.0,117650.0,1.20891091]
[1753916457328,0.02081711,117660.0,117650.0,1.2174104]
[1753916458738,0.02081711,117660.0,117650.0,1.21741004]
[1753916459963,0.02081711,117660.0,117650.0,1.20041113]
[1753916460214,0.02081711,117660.0,117650.0,1.20891062]
[1753916460589,0.02081711,117660.0,117650.0,1.18341192]
[1753916461203,0.02081711,117660.0,117650.0,1.19191156]
[1753916461409,0.02081711,117660.0,117650.0,1.20041113]
[1753916461606,0.02081711,117660.0,117650.0,1.19191156]
[1753916462058,0.02081711,117660.0,117650.0,0.66215776]
[1753916462268,0.02081711,117660.0,117650.0,1.19191156]
[1753916462483,0.02081711,117660.0,117650.0,1.18341192]
[1753916462653,0.02081711,117660.0,117650.0,1.19191156]
[1753916462917,0.02081711,117660.0,117650.0,1.18341192]
[1753916463067,0.02081711,117660.0,117650.0,1.19191149]
[1753916463466,0.02081711,117660.0,117650.0,1.19191156]
[1753916463665,0.02081711,117660.0,117650.0,1.18341192]
[1753916464422,0.02081711,117660.0,117650.0,1.19191156]
[1753916464798,0.02081711,117660.0,117650.0,1.20041113]
[1753916465002,0.02081711,117660.0,117650.0,1.19191156]
[1753916465971,0.02081711,117660.0,117650.0,1.18341192]
[1753916466194,0.02081711,117660.0,117650.0,1.19191156]
[1753916466605,0.02081711,117660.0,117650.0,0.93128448]
[1753916466820,0.02081711,117660.0,117650.0,0.92278491]
[1753916467288,0.02081711,117660.0,117650.0,0.93128448]
[1753916467715,0.02081711,117660.0,117650.0,0.92278491]
[1753916467924,0.02081711,117660.0,117650.0,0.93128455]
[1753916468148,0.02081711,117660.0,117650.0,0.93978426]
[1753916468368,0.02081711,117660.0,117650.0,0.93128462]
[1753916468581,0.02081711,117660.0,117650.0,0.93978426]
[1753916469823,0.02081711,117660.0,117650.0,0.94828375]
[1753916470045,0.02081711,117660.0,117650.0,0.93128462]
[1753916470180,0.02081711,117660.0,117650.0,0.93978426]
[1753916471175,0.02081711,117660.0,117650.0,0.94828383]
[1753916471428,0.02081711,117660.0,117650.0,0.93978426]
[1753916471647,0.02081711,117660.0,117650.0,0.93128462]
[1753916472297,0.02081711,117660.0,117650.0,0.93978426]
[1753916472713,0.02081711,117660.0,117650.0,0.94828383]
[1753916473668,0.02081711,117660.0,117650.0,0.93978426]
[1753916474326,0.02081711,117660.0,117650.0,0.94828383]
[1753916474524,0.02081711,117660.0,117650.0,0.93978426]
[1753916474926,0.02081711,117660.0,117650.0,0.94828383]
[1753916475739,0.06225711,117660.0,117650.0,0.93804426]
[1753916475939,0.04705711,117660.0,117650.0,0.93804426]
[1753916476411,0.02284711,117660.0,117650.0,0.93804426]
[1753916476825,0.02284711,117660.0,117650.0,0.94654383]
[1753916477240,0.02284711,117660.0,117650.0,0.95504332]
[1753916477444,0.02284711,117660.0,117650.0,0.94654383]
[1753916478068,0.02284711,117660.0,117650.0,0.93804426]
[1753916478301,0.02284711,117660.0,117650.0,0.94654383]
[1753916478576,0.02081711,117660.0,117650.0,0.94654383]
[1753916479272,0.02081711,117660.0,117650.0,0.95504325]
[1753916479421,0.02081711,117660.0,117650.0,1.2156704]
[1753916479824,0.02081711,117660.0,117650.0,1.0114304]
[1753916480439,0.00501711,117660.0,117650.0,1.0268299]
[1753916480706,0.00501711,117660.0,117650.0,1.0433299]
[1753916487007,0.00501711,117660.0,117650.0,0.50557574]
[1753916487454,0.00501711,117660.0,117650.0,1.0268299]
[1753916492725,0.00501711,117660.0,117650.0,1.0268299]
[1753916495696,0.00501711,117660.0,117650.0,1.02683004]
[1753916495828,0.00501711,117660.0,117650.0,1.02682961]
[1753916496251,0.00501711,117660.0,117650.0,1.01833033]
[1753916496660,0.00501711,117660.0,117650.0,1.02682961]
[1753916497089,0.00501711,117660.0,117650.0,1.02682968]
[1753916497937,0.00501711,117660.0,117650.0,1.02682932]
[1753916498365,0.00501711,117660.0,117650.0,1.01833004]
[1753916498999,0.00501711,117660.0,117650.0,1.22257004]
[1753916499166,0.00501711,117660.0,117650.0,1.23106932]
[1753916499392,0.00501711,117660.0,117650.0,1.20717004]
[1753916499393,0.02021711,117660.0,117650.0,1.20717004]
[1753916499793,0.02021711,117660.0,117650.0,1.19013127]
[1753916499935,0.02021711,117660.0,117650.0,1.19863062]
[1753916500155,0.02021711,117660.0,117650.0,1.19863069]
[1753916500359,0.02021711,117660.0,117650.0,1.20713004]
[1753916503261,0.02021711,117660.0,117650.0,1.19863069]
[1753916504122,0.02021711,117660.0,117650.0,1.19013127]
[1753916504763,0.02021711,117660.0,117650.0,1.06153127]
[1753916504976,0.02021711,117660.0,117650.0,1.19863062]
[1753916505158,0.02021711,117660.0,117650.0,1.19863069]
[1753916505305,0.02021711,117660.0,117650.0,1.20713004]
[1753916506526,0.00501711,117660.0,117650.0,1.21562932]
[1753916506740,0.00501711,117660.0,117650.0,1.23062932]
[1753916507730,0.00501711,117660.0,117650.0,1.09353004]
[1753916507929,0.00501711,117660.0,117650.0,1.22213004]
[1753916508806,0.00501711,117660.0,117650.0,1.23062932]
[1753916509244,0.00501711,117660.0,117650.0,1.21363069]
[1753916509659,0.02011711,117660.0,117650.0,1.19013156]
[1753916509858,0.02011711,117660.0,117650.0,1.19863105]
[1753916510061,0.02011711,117660.0,117650.0,1.19013156]
[1753916510235,0.02011711,117660.0,117650.0,1.19863105]
[1753916510433,0.02011711,117660.0,117650.0,1.20713047]
[1753916511026,0.02011711,117660.0,117650.0,1.21562982]
[1753916511230,0.02011711,117660.0,117650.0,1.20713047]
[1753916513354,0.02011711,117660.0,117650.0,1.21562982]
[1753916513762,0.02011711,117660.0,117650.0,1.20713047]
[1753916514826,0.02011711,117660.0,117650.0,1.19863105]
[1753916515247,0.02011711,117660.0,117650.0,1.07003105]
[1753916515669,0.02011711,117660.0,117650.0,1.20713047]
[1753916516057,0.02011711,117660.0,117650.0,1.19863105]
[1753916516242,0.02011711,117660.0,117650.0,1.05303199]
[1753916516446,0.02011711,117660.0,117650.0,1.06153163]
[1753916516687,0.02011711,117660.0,117650.0,1.19013163]
[1753916516876,0.02011711,117660.0,117650.0,1.1986312]
[1753916517252,0.02011711,117660.0,117650.0,1.19013163]
[1753916517460,0.02011711,117660.0,117650.0,0.92950455]
[1753916517672,0.02011711,117660.0,117650.0,0.4538623]
[1753916517673,0.06203711,117660.0,117650.0,0.4538623]
[1753916517878,0.06514711,117660.0,117650.0,0.2997173]
[1753916518505,0.06514711,117660.0,117650.0,0.4283173]
[1753916518751,0.06727417,117660.0,117650.0,0.4283173]
[1753916518951,0.06727417,117660.0,117650.0,0.2887173]
[1753916519142,0.06727417,117660.0,117650.0,0.4223173]
[1753916519143,0.10888008,117660.0,117650.0,0.4223173]
[1753916519468,0.10888008,117660.0,117650.0,0.4243173]
[1753916519674,0.10888008,117660.0,117650.0,0.4193173]
[1753916520448,0.10888008,117660.0,117650.0,0.4173173]
[1753916521038,0.10888008,117660.0,117650.0,0.4203173]
[1753916521242,0.10888008,117660.0,117650.0,0.4173173]
[1753916521652,0.10888008,117660.0,117650.0,0.4193173]
[1753916527746,0.06727417,117660.0,117650.0,0.2150773]
[1753916527986,0.06727417,117660.0,117650.0,0.54385038]
[1753916528185,0.06203711,117660.0,117650.0,0.56965038]
[1753916528454,0.02011711,117660.0,117650.0,0.57270038]
[1753916529509,0.00501711,117660.0,117650.0,0.57270038]
[1753916529713,0.00501711,117660.0,117650.0,0.58910038]
[1753916530346,0.00501711,117660.0,117650.0,0.59760009]
[1753916530576,0.00501711,117660.0,117650.0,0.60609966]
[1753916530789,0.00501711,117660.0,117650.0,1.03772256]
[1753916530996,0.00501711,117660.0,117650.0,1.03572256]
[1753916531226,0.00501711,117660.0,117650.0,0.76959584]
[1753916531442,0.00501711,117660.0,117650.0,0.59860009]
[1753916531640,0.00501711,117660.0,117650.0,0.60609973]
[1753916531864,0.00501711,117660.0,117650.0,0.6145993]
[1753916532064,0.00501711,117660.0,117650.0,0.61109973]
[1753916532487,0.00501711,117660.0,117650.0,0.60260016]
[1753916532901,0.00501711,117660.0,117650.0,0.68917539]
[1753916533319,0.00501711,117660.0,117650.0,0.6976751]
[1753916533939,0.00501711,117660.0,117650.0,0.86767085]
[1753916534944,0.00501711,117660.0,117650.0,0.88467006]
[1753916535151,0.00501711,117660.0,117650.0,0.88466962]
[1753916535364,0.00501711,117660.0,117650.0,0.89986962]
[1753916535570,0.00501711,117660.0,117650.0,0.89986969]
[1753916535798,0.00501711,117660.0,117650.0,0.90836897]
[1753916536002,0.00501711,117660.0,117650.0,0.88637034]
[1753916536212,0.00501711,117660.0,117650.0,0.90336897]
[1753916536602,0.00501711,117660.0,117650.0,0.90136897]
[1753916536843,0.00501711,117660.0,117650.0,0.90436897]
[1753916537385,0.00501711,117660.0,117650.0,0.91036897]
[1753916537750,0.00501711,117660.0,117650.0,0.92741669]
[1753916538174,0.00501711,117660.0,117650.0,0.93591597]
[1753916543098,0.00501711,117660.0,117650.0,0.5053678]
[1753916543434,0.00501711,117660.0,117650.0,0.85256961]
[1753916543591,0.00501711,117660.0,117650.0,0.86786961]
[1753916544782,0.00501711,117660.0,117650.0,0.85937033]
[1753916545220,0.00501711,117660.0,117650.0,0.84237171]
[1753916545412,0.00501711,117660.0,117650.0,0.84237185]
[1753916545609,0.00501711,117660.0,117650.0,0.86787026]
[1753916545809,0.00501711,117660.0,117650.0,0.82537236]
[1753916546014,0.00501711,117660.0,117650.0,0.65537661]
[1753916547097,0.00501711,117660.0,117650.0,0.64007661]
[1753916551613,0.00501711,117660.0,117650.0,0.51147661]
[1753916551985,0.00501711,117660.0,117650.0,0.64087661]
[1753916552766,0.00501711,117660.0,117650.0,0.2936743]
[1753916552965,0.00501711,117660.0,117650.0,0.55406348]
[1753916557632,0.00501711,117660.0,117650.0,0.52851648]
[1753916559021,0.00501711,117660.0,117650.0,0.69851223]
[1753916561639,0.00501711,117660.0,117650.0,0.95890141]
[1753916569048,0.00501711,117660.0,117650.0,0.69851223]
[1753916569255,0.00501711,117660.0,117650.0,0.68211223]
[1753916569463,0.02121711,117660.0,117650.0,0.68211223]
[1753916570118,0.02121711,117660.0,117650.0,0.51211648]
[1753916573152,0.02121711,117660.0,117650.0,0.68211223]
[1753916574198,0.02121711,117660.0,117650.0,0.51211648]
[1753916579031,0.02121711,117660.0,117650.0,0.68211223]
[1753916580056,0.02121711,117660.0,117650.0,0.67707223]
[1753916580270,0.02121711,117660.0,117650.0,0.68221223]
[1753916580514,0.02121711,117660.0,117650.0,0.51221648]
[1753916593200,0.04715711,117660.0,117650.0,0.51221648]
[1753916594185,0.04715711,117660.0,117650.0,0.50910648]
[1753916594777,0.04715711,117660.0,117650.0,0.51221648]
[1753916594976,0.02325711,117660.0,117650.0,0.51221648]
[1753916596786,0.02121711,117660.0,117650.0,0.51221648]
[1753916604844,0.04715711,117660.0,117650.0,0.51221648]
[1753916605250,0.02325711,117660.0,117650.0,0.51221648]
[1753916606772,0.02121711,117660.0,117650.0,0.51221648]
[1753916617919,0.02121711,117660.0,117650.0,0.53776348]
[1753916618770,0.00501711,117660.0,117650.0,0.70775923]
[1753916618992,0.00501711,117660.0,117650.0,0.46237005]
[1753916619198,0.00501711,117660.0,117650.0,0.98314841]
[1753916619406,0.00501711,117660.0,117650.0,0.72275923]
[1753916621931,0.00501711,117660.0,117650.0,0.55276348]
[1753916623413,0.00501711,117660.0,117650.0,0.72275923]
[1753916624486,0.00501711,117660.0,117650.0,0.55276348]
[1753916626854,0.02161711,117660.0,117650.0,0.53776348]
[1753916627492,0.02161711,117660.0,117650.0,0.2773743]
[1753916627865,0.02161711,117660.0,117650.0,0.53776348]
[1753916628646,0.02161711,117660.0,117650.0,0.2773743]
[1753916628858,0.02161711,117660.0,117650.0,0.53776348]
[1753916630399,0.02161711,117660.0,117650.0,0.2773743]
[1753916630608,0.02161711,117660.0,117650.0,0.53776348]
[1753916631431,0.02356711,117660.0,117650.0,0.53776348]
[1753916632459,0.07307131,117660.0,117650.0,0.1190243]
[1753916632668,0.07307131,117660.0,117650.0,0.2225573]
[1753916633698,0.06555711,117660.0,117650.0,0.48294648]
[1753916637905,0.06262711,117660.0,117650.0,0.48294648]
[1753916640997,0.06262711,117660.0,117650.0,0.50553648]
[1753916643341,0.06262711,117660.0,117650.0,0.2451473]
[1753916643545,0.06262711,117660.0,117650.0,0.50553648]
[1753916643775,0.06262711,117660.0,117650.0,0.50768648]
[1753916644625,0.06262711,117660.0,117650.0,0.51069648]
[1753916649254,0.03906711,117660.0,117650.0,0.51069648]
[1753916651430,0.02356711,117660.0,117650.0,0.51069648]
[1753916656559,0.04738711,117660.0,117650.0,0.51069648]
[1753916657708,0.04738711,117660.0,117650.0,0.50769648]
[1753916658081,0.02356711,117660.0,117650.0,0.50969648]
[1753916658657,0.04738711,117660.0,117650.0,0.50969648]
[1753916659542,0.02356711,117660.0,117650.0,0.50369648]
[1753916661383,0.02356711,117660.0,117650.0,0.50869648]
[1753916663041,0.02356711,117660.0,117650.0,0.2483073]
[1753916663270,0.02356711,117660.0,117650.0,0.50869648]
[1753916665310,0.02356711,117660.0,117650.0,0.2483073]
[1753916665524,0.02356711,117660.0,117650.0,0.50869648]
[1753916668365,0.02161711,117660.0,117650.0,0.50869648]
[1753916668608,0.00501711,117660.0,117650.0,0.51114883]
[1753916668858,0.00501711,117660.0,117650.0,1.02342741]
[1753916669064,0.00501711,117660.0,117650.0,1.05682676]
[1753916669302,0.00501711,117660.0,117650.0,1.03982741]
[1753916669782,0.00501711,117660.0,117650.0,0.63499048]
[1753916670002,0.00501711,117660.0,117650.0,0.3746013]
[1753916670429,0.00501711,117660.0,117650.0,0.63499048]
[1753916671265,0.00501711,117660.0,117650.0,0.80498623]
[1753916672896,0.00501711,117660.0,117650.0,0.54459705]
[1753916673058,0.00501711,117660.0,117650.0,0.80498623]
[1753916673995,0.00493617,117660.0,117650.0,0.80498623]
[1753916674754,0.00493617,117660.0,117650.0,0.78858623]
[1753916676604,0.00493617,117660.0,117650.0,0.52819705]
[1753916676767,0.00493617,117660.0,117650.0,0.78858623]
[1753916677371,0.00493617,117660.0,117650.0,0.46005105]
[1753916677576,0.00493617,117660.0,117650.0,0.72044023]
[1753916677783,0.00493617,117660.0,117650.0,0.52489648]
[1753916679891,0.00493617,117660.0,117650.0,0.2645073]
[1753916680107,0.02311617,117660.0,117650.0,0.50869648]
[1753916680522,0.04597617,117660.0,117650.0,0.50869648]
[1753916680940,0.02311617,117660.0,117650.0,0.2483073]
[1753916681152,0.02113617,117660.0,117650.0,0.50869648]
[1753916681359,0.02113617,117660.0,117650.0,0.2483073]
[1753916681563,0.02113617,117660.0,117650.0,0.50869648]
[1753916683774,0.00493617,117660.0,117650.0,0.52489648]
[1753916684406,0.00493617,117660.0,117650.0,0.2645073]
[1753916684620,0.00493617,117660.0,117650.0,0.52489648]
[1753916685709,0.00493617,117660.0,117650.0,0.81540153]
[1753916685925,0.00493617,117660.0,117650.0,1.31918112]
[1753916686153,0.00493617,117660.0,117650.0,1.31918105]
[1753916686367,0.00493617,117660.0,117650.0,1.31068141]
[1753916686591,0.00493617,117660.0,117650.0,0.97918112]
[1753916686825,0.00493617,117660.0,117650.0,0.98768076]
[1753916687238,0.00493617,117660.0,117650.0,0.97918112]
[1753916687447,0.00493617,117660.0,117650.0,0.98768069]
[1753916687878,0.00493617,117660.0,117650.0,0.99618018]
[1753916688517,0.00493617,117660.0,117650.0,0.98768069]
[1753916688734,0.00493617,117660.0,117650.0,0.66268276]
[1753916688944,0.00493617,117660.0,117650.0,1.19196076]
[1753916689172,0.00485725,117660.0,117650.0,0.69668074]
[1753916689382,0.00485725,117660.0,117650.0,1.2174591]
[1753916690033,0.00485725,117660.0,117650.0,0.69668074]
[1753916690464,0.00485725,117660.0,117650.0,1.20895946]
[1753916690900,0.00485725,117660.0,117650.0,1.20895953]
[1753916691112,0.00485725,117660.0,117650.0,0.67118226]
[1753916691333,0.00485725,117660.0,117650.0,1.20046011]
[1753916691551,0.00485725,117660.0,117650.0,1.22600711]
[1753916692306,0.00485725,117660.0,117650.0,1.23450646]
[1753916692515,0.00485725,117660.0,117650.0,1.23450653]
[1753916692715,0.00485725,117660.0,117650.0,1.22600711]
[1753916692917,0.00485725,117660.0,117650.0,1.21750762]
[1753916693133,0.00485725,117660.0,117650.0,1.22600711]
[1753916693339,0.00485725,117660.0,117650.0,1.21750762]
[1753916693734,0.00485725,117660.0,117650.0,1.20900805]
[1753916693944,0.00485725,117660.0,117650.0,1.21750762]
[1753916694859,0.00485725,117660.0,117650.0,1.20900805]
[1753916695069,0.00485725,117660.0,117650.0,1.21750762]
[1753916695279,0.00485725,117660.0,117650.0,1.49489557]
[1753916695694,0.00485725,117660.0,117650.0,1.23450639]
[1753916700827,0.00485725,117660.0,117650.0,1.18510841]
[1753916701042,0.04847725,117660.0,117650.0,0.90550923]
[1753916701253,0.04847725,117660.0,117650.0,0.92250858]
[1753916701473,0.00701725,117660.0,117650.0,1.20186776]